[Event "January 9 Early 2024"]
[Site "https://www.chess.com"]
[Date "2024.01.11"]
[Round "3"]
[White "Aarav Dengla"]
[Black "Begunov, Konstantin"]
[Result "0-1"]
[Board "111"]
[TimeControl "180+1"]
[WhiteFideId "45059756"]
[BlackFideId "4118510"]
[WhiteElo "2643"]
[BlackElo "2473"]
[WhiteTeam "IND"]
[BlackTeam "RUS"]
[WhiteClock "0:01:16"]
[BlackClock "0:00:11"]

1. b3 {[%clk 0:03:00]}  d5 {[%clk 0:02:59]} 2. Bb2 {[%clk 0:02:59]}  Bg4 {[%clk 0:03:00]} 3. g3 {[%clk 0:02:58]}  c6 {[%clk 0:02:59]} 4. Bg2 {[%clk 0:02:59]}  Nd7 {[%clk 0:02:59]} 5. Nf3 {[%clk 0:02:59]}  f6 {[%clk 0:02:59]} 6. d4 {[%clk 0:02:59]}  e6 {[%clk 0:02:59]} 7. c4 {[%clk 0:02:58]}  Bd6 {[%clk 0:02:55]} 8. O-O {[%clk 0:02:58]}  Qe7 {[%clk 0:02:56]} 9. Nbd2 {[%clk 0:02:56]}  f5 {[%clk 0:02:56]} 10. Qc2 {[%clk 0:02:52]}  Ngf6 {[%clk 0:02:55]} 11. Ne5 {[%clk 0:02:48]}  Bh5 {[%clk 0:02:55]} 12. f4 {[%clk 0:02:44]}  O-O {[%clk 0:02:51]} 13. c5 {[%clk 0:02:40]}  Bxe5 {[%clk 0:02:47]} 14. fxe5 {[%clk 0:02:41]}  Ne4 {[%clk 0:02:47]} 15. Nxe4 {[%clk 0:02:37]}  fxe4 {[%clk 0:02:44]} 16. e3 {[%clk 0:02:36]}  Qg5 {[%clk 0:02:34]} 17. Rf4 {[%clk 0:02:34]}  Qe7 {[%clk 0:02:21]} 18. Raf1 {[%clk 0:02:34]}  g5 {[%clk 0:02:19]} 19. R4f2 {[%clk 0:02:28]}  Rxf2 {[%clk 0:02:18]} 20. Rxf2 {[%clk 0:02:29]}  Rf8 {[%clk 0:02:18]} 21. Bc3 {[%clk 0:02:28]}  Rxf2 {[%clk 0:02:17]} 22. Qxf2 {[%clk 0:02:29]}  Qf7 {[%clk 0:02:12]} 23. h3 {[%clk 0:02:26]}  Bf3 {[%clk 0:01:41]} 24. Bxf3 {[%clk 0:02:09]}  exf3 {[%clk 0:01:40]} 25. Kh2 {[%clk 0:02:07]}  h5 {[%clk 0:01:40]} 26. g4 {[%clk 0:02:07]}  hxg4 {[%clk 0:00:31]} 27. hxg4 {[%clk 0:02:08]}  Qh7+ {[%clk 0:00:32]} 28. Kg3 {[%clk 0:02:06]}  Qd3 {[%clk 0:00:32]} 29. Be1 {[%clk 0:02:00]}  Nf8 {[%clk 0:00:29]} 30. Qxf3 {[%clk 0:01:58]}  Ng6 {[%clk 0:00:29]} 31. Kg2 {[%clk 0:01:54]}  Qc2+ {[%clk 0:00:22]} 32. Kg1 {[%clk 0:01:47]}  Qb1 {[%clk 0:00:17]} 33. Kf1 {[%clk 0:01:45]}  Nh4 {[%clk 0:00:16]} 34. Qf6 {[%clk 0:01:40]}  Kh7 {[%clk 0:00:11]} 35. Qxg5 {[%clk 0:01:22]}  Qxe1+ {[%clk 0:00:09]} 36. Kxe1 {[%clk 0:01:22]}  Nf3+ {[%clk 0:00:09]} 37. Ke2 {[%clk 0:01:22]}  Nxg5 {[%clk 0:00:10]} 38. b4 {[%clk 0:01:22]}  Kg6 {[%clk 0:00:11]} 39. a4 {[%clk 0:01:23]}  a6 {[%clk 0:00:12]} 40. Kd3 {[%clk 0:01:22]}  Ne4 {[%clk 0:00:11]} 41. Kc2 {[%clk 0:01:22]}  Kg5 {[%clk 0:00:11]} 42. b5 {[%clk 0:01:18]}  a5 {[%clk 0:00:11]} 43. Kb3 {[%clk 0:01:16]}  Kxg4 {[%clk 0:00:11]} 0-1

[Event "January 9 Early 2024"]
[Site "https://www.chess.com"]
[Date "2024.01.11"]
[Round "3"]
[White "Ozer, Omer Faruk"]
[Black "Chigaev, Maksim"]
[Result "0-1"]
[Board "112"]
[TimeControl "180+1"]
[WhiteFideId "6354564"]
[BlackFideId "4108116"]
[WhiteElo "2715"]
[BlackElo "2960"]
[WhiteTeam "TUR"]
[BlackTeam "ESP"]
[WhiteClock "0:00:02"]
[BlackClock "0:00:33"]

1. e4 {[%clk 0:03:00]}  e5 {[%clk 0:03:00]} 2. Nc3 {[%clk 0:03:00]}  Nf6 {[%clk 0:02:58]} 3. g3 {[%clk 0:03:00]}  Bc5 {[%clk 0:02:55]} 4. Bg2 {[%clk 0:03:00]}  c6 {[%clk 0:02:55]} 5. Nf3 {[%clk 0:02:58]}  d5 {[%clk 0:02:36]} 6. O-O {[%clk 0:02:55]}  d4 {[%clk 0:02:15]} 7. Ne2 {[%clk 0:02:53]}  Nbd7 {[%clk 0:02:07]} 8. d3 {[%clk 0:02:52]}  Be7 {[%clk 0:02:00]} 9. h3 {[%clk 0:02:41]}  O-O {[%clk 0:01:59]} 10. Nh2 {[%clk 0:02:38]}  c5 {[%clk 0:01:56]} 11. f4 {[%clk 0:02:36]}  b5 {[%clk 0:01:55]} 12. Nf3 {[%clk 0:02:24]}  Bd6 {[%clk 0:01:53]} 13. g4 {[%clk 0:01:56]}  Rb8 {[%clk 0:01:32]} 14. Qe1 {[%clk 0:00:50]}  c4 {[%clk 0:01:18]} 15. Qg3 {[%clk 0:00:48]}  Qc7 {[%clk 0:01:06]} 16. fxe5 {[%clk 0:00:33]}  Nxe5 {[%clk 0:01:07]} 17. Bf4 {[%clk 0:00:33]}  Nxf3+ {[%clk 0:01:06]} 18. Rxf3 {[%clk 0:00:33]}  Bxf4 {[%clk 0:01:02]} 19. Nxf4 {[%clk 0:00:33]}  Be6 {[%clk 0:00:48]} 20. g5 {[%clk 0:00:12]}  Nd7 {[%clk 0:00:48]} 21. Qf2 {[%clk 0:00:09]}  Ne5 {[%clk 0:00:43]} 22. Rg3 {[%clk 0:00:09]}  Ng6 {[%clk 0:00:42]} 23. Ne2 {[%clk 0:00:05]}  Rbd8 {[%clk 0:00:38]} 24. Kh2 {[%clk 0:00:02]}  f6 {[%clk 0:00:33]} 0-1

[Event "January 9 Early 2024"]
[Site "https://www.chess.com"]
[Date "2024.01.11"]
[Round "3"]
[White "Hernandez Santos, David Ale"]
[Black "Nord, Alexander"]
[Result "0-1"]
[Board "114"]
[TimeControl "180+1"]
[WhiteFideId "5132002"]
[BlackFideId "1738135"]
[WhiteElo "1988"]
[BlackElo "2340"]
[WhiteTeam "MEX"]
[BlackTeam "SWE"]
[WhiteClock "0:00:24"]
[BlackClock "0:00:27"]

1. d4 {[%clk 0:02:56]}  Nf6 {[%clk 0:02:58]} 2. Nc3 {[%clk 0:02:56]}  d5 {[%clk 0:02:55]} 3. Bf4 {[%clk 0:02:57]}  e6 {[%clk 0:02:53]} 4. Nb5 {[%clk 0:02:57]}  Na6 {[%clk 0:02:53]} 5. e3 {[%clk 0:02:57]}  Be7 {[%clk 0:02:50]} 6. Nf3 {[%clk 0:02:52]}  O-O {[%clk 0:02:49]} 7. a3 {[%clk 0:02:51]}  c6 {[%clk 0:02:49]} 8. Nc3 {[%clk 0:02:51]}  c5 {[%clk 0:02:46]} 9. Bxa6 {[%clk 0:02:48]}  bxa6 {[%clk 0:02:46]} 10. O-O {[%clk 0:02:48]}  a5 {[%clk 0:02:38]} 11. Ne5 {[%clk 0:02:35]}  Qb6 {[%clk 0:02:30]} 12. Rb1 {[%clk 0:02:31]}  Ba6 {[%clk 0:02:23]} 13. Re1 {[%clk 0:02:28]}  Rfc8 {[%clk 0:02:18]} 14. dxc5 {[%clk 0:02:22]}  Qxc5 {[%clk 0:02:10]} 15. Nd3 {[%clk 0:02:08]}  Qb6 {[%clk 0:02:03]} 16. Qd2 {[%clk 0:01:39]}  Ne4 {[%clk 0:01:35]} 17. Nxe4 {[%clk 0:01:37]}  dxe4 {[%clk 0:01:36]} 18. Nc1 {[%clk 0:01:13]}  Rd8 {[%clk 0:01:13]} 19. Qc3 {[%clk 0:01:05]}  Rac8 {[%clk 0:01:05]} 20. Qb3 {[%clk 0:00:51]}  Qc6 {[%clk 0:01:01]} 21. h4 {[%clk 0:00:46]}  Qxc2 {[%clk 0:00:30]} 22. Qxc2 {[%clk 0:00:44]}  Rxc2 {[%clk 0:00:31]} 23. Be5 {[%clk 0:00:41]}  Bxh4 {[%clk 0:00:29]} 24. g3 {[%clk 0:00:38]}  Bf6 {[%clk 0:00:29]} 25. Bxf6 {[%clk 0:00:36]}  gxf6 {[%clk 0:00:30]} 26. b3 {[%clk 0:00:33]}  Rdd2 {[%clk 0:00:29]} 27. Rf1 {[%clk 0:00:31]}  Bxf1 {[%clk 0:00:28]} 28. Kxf1 {[%clk 0:00:27]}  Rxf2+ {[%clk 0:00:28]} 29. Ke1 {[%clk 0:00:27]}  Rh2 {[%clk 0:00:28]} 30. Kd1 {[%clk 0:00:24]}  Rcg2 {[%clk 0:00:27]} 0-1

[Event "January 9 Early 2024"]
[Site "https://www.chess.com"]
[Date "2024.01.11"]
[Round "3"]
[White "Boruchovsky, Avital"]
[Black "Matko, Ognjen"]
[Result "1-0"]
[Board "117"]
[TimeControl "180+1"]
[WhiteFideId "2800055"]
[BlackFideId "14509717"]
[WhiteElo "2780"]
[BlackElo "2508"]
[WhiteTeam "ISR"]
[BlackTeam "CRO"]
[WhiteClock "0:00:33"]
[BlackClock "0:00:02"]

1. e4 {[%clk 0:03:00]}  g6 {[%clk 0:03:00]} 2. d4 {[%clk 0:02:56]}  Bg7 {[%clk 0:03:01]} 3. Nf3 {[%clk 0:02:54]}  d6 {[%clk 0:03:01]} 4. c4 {[%clk 0:02:54]}  a6 {[%clk 0:03:00]} 5. h3 {[%clk 0:02:53]}  Nd7 {[%clk 0:02:59]} 6. Be3 {[%clk 0:02:51]}  c5 {[%clk 0:02:57]} 7. Nc3 {[%clk 0:02:50]}  Qa5 {[%clk 0:02:33]} 8. Bd3 {[%clk 0:02:43]}  Ngf6 {[%clk 0:01:56]} 9. e5 {[%clk 0:02:23]}  Ng8 {[%clk 0:01:13]} 10. exd6 {[%clk 0:02:12]}  exd6 {[%clk 0:01:05]} 11. O-O {[%clk 0:02:10]}  Ngf6 {[%clk 0:01:02]} 12. Bf4 {[%clk 0:02:07]}  O-O {[%clk 0:00:58]} 13. Bxd6 {[%clk 0:02:06]}  Re8 {[%clk 0:00:58]} 14. Re1 {[%clk 0:01:53]}  cxd4 {[%clk 0:00:52]} 15. Nd5 {[%clk 0:01:35]}  Rxe1+ {[%clk 0:00:41]} 16. Qxe1 {[%clk 0:01:35]}  Qxe1+ {[%clk 0:00:28]} 17. Rxe1 {[%clk 0:01:36]}  Nxd5 {[%clk 0:00:26]} 18. Re8+ {[%clk 0:01:31]}  Bf8 {[%clk 0:00:20]} 19. cxd5 {[%clk 0:01:32]}  Kg7 {[%clk 0:00:19]} 20. Bxf8+ {[%clk 0:01:19]}  Nxf8 {[%clk 0:00:20]} 21. d6 {[%clk 0:01:16]}  Nd7 {[%clk 0:00:15]} 22. Nxd4 {[%clk 0:01:11]}  b5 {[%clk 0:00:13]} 23. g4 {[%clk 0:00:38]}  Bb7 {[%clk 0:00:13]} 24. Re7 {[%clk 0:00:38]}  Bc8 {[%clk 0:00:04]} 25. Be4 {[%clk 0:00:36]}  Rb8 {[%clk 0:00:02]} 26. Bd5 {[%clk 0:00:33]} 1-0

[Event "January 9 Early 2024"]
[Site "https://www.chess.com"]
[Date "2024.01.11"]
[Round "3"]
[White "Sethuraman, S.P."]
[Black "Kleiman, Jake"]
[Result "1-0"]
[Board "121"]
[TimeControl "180+1"]
[WhiteFideId "5021596"]
[BlackFideId "2020041"]
[WhiteElo "2888"]
[BlackElo "2635"]
[WhiteTeam "IND"]
[BlackTeam "USA"]
[WhiteClock "0:01:02"]
[BlackClock "0:00:10"]

1. e4 {[%clk 0:03:00]}  e5 {[%clk 0:02:59]} 2. Nf3 {[%clk 0:03:00]}  Nc6 {[%clk 0:03:00]} 3. Bc4 {[%clk 0:03:01]}  Bc5 {[%clk 0:02:59]} 4. d3 {[%clk 0:03:01]}  Nf6 {[%clk 0:03:00]} 5. O-O {[%clk 0:03:01]}  O-O {[%clk 0:03:01]} 6. Bg5 {[%clk 0:02:59]}  h6 {[%clk 0:03:01]} 7. Bh4 {[%clk 0:02:59]}  Be7 {[%clk 0:03:01]} 8. a4 {[%clk 0:02:54]}  d6 {[%clk 0:03:01]} 9. Nc3 {[%clk 0:02:48]}  Nh7 {[%clk 0:02:52]} 10. Bg3 {[%clk 0:02:45]}  Ng5 {[%clk 0:02:53]} 11. h3 {[%clk 0:02:34]}  Be6 {[%clk 0:02:43]} 12. Bxe6 {[%clk 0:02:24]}  fxe6 {[%clk 0:02:43]} 13. Nxg5 {[%clk 0:02:22]}  Bxg5 {[%clk 0:02:43]} 14. Ne2 {[%clk 0:02:21]}  Qd7 {[%clk 0:02:31]} 15. c3 {[%clk 0:02:17]}  a5 {[%clk 0:02:22]} 16. Qb3 {[%clk 0:02:15]}  Kh8 {[%clk 0:02:17]} 17. Rad1 {[%clk 0:02:15]}  b6 {[%clk 0:02:11]} 18. d4 {[%clk 0:02:15]}  exd4 {[%clk 0:02:06]} 19. cxd4 {[%clk 0:02:15]}  d5 {[%clk 0:02:05]} 20. exd5 {[%clk 0:02:12]}  exd5 {[%clk 0:02:04]} 21. Nc3 {[%clk 0:02:12]}  Nb4 {[%clk 0:02:04]} 22. Be5 {[%clk 0:02:09]}  Bf4 {[%clk 0:01:57]} 23. Ne2 {[%clk 0:01:58]}  Bxe5 {[%clk 0:01:52]} 24. dxe5 {[%clk 0:01:59]}  c5 {[%clk 0:01:52]} 25. f4 {[%clk 0:01:54]}  d4 {[%clk 0:01:46]} 26. Nc3 {[%clk 0:01:42]}  Qc6 {[%clk 0:01:16]} 27. Nb5 {[%clk 0:01:40]}  Rad8 {[%clk 0:01:13]} 28. Qg3 {[%clk 0:01:36]}  d3 {[%clk 0:01:09]} 29. f5 {[%clk 0:01:33]}  c4 {[%clk 0:00:51]} 30. Kh2 {[%clk 0:01:32]}  Nd5 {[%clk 0:00:43]} 31. Nd4 {[%clk 0:01:27]}  Qxa4 {[%clk 0:00:33]} 32. Ne6 {[%clk 0:01:27]}  Qd7 {[%clk 0:00:26]} 33. Nxd8 {[%clk 0:01:21]}  Qxd8 {[%clk 0:00:25]} 34. Rde1 {[%clk 0:01:17]}  b5 {[%clk 0:00:24]} 35. e6 {[%clk 0:01:15]}  Qe7 {[%clk 0:00:22]} 36. Re4 {[%clk 0:01:06]}  Rd8 {[%clk 0:00:16]} 37. Rd4 {[%clk 0:01:03]}  Qc5 {[%clk 0:00:15]} 38. Qe5 {[%clk 0:01:02]}  Qd6 {[%clk 0:00:10]} 39. Qxd6 {[%clk 0:01:01]}  Rxd6 {[%clk 0:00:10]} 40. e7 {[%clk 0:01:02]} 1-0

[Event "January 9 Early 2024"]
[Site "https://www.chess.com"]
[Date "2024.01.11"]
[Round "3"]
[White "Paikens, Reinis"]
[Black "Andreev, Konstantin"]
[Result "0-1"]
[Board "122"]
[TimeControl "180+1"]
[WhiteFideId "11624078"]
[BlackFideId "24239305"]
[WhiteElo "2254"]
[BlackElo "2547"]
[WhiteTeam "LAT"]
[BlackTeam "ITA"]
[WhiteClock "0:00:03"]
[BlackClock "0:01:01"]

1. c4 {[%clk 0:03:00]}  e5 {[%clk 0:02:59]} 2. Nc3 {[%clk 0:03:00]}  Nf6 {[%clk 0:03:00]} 3. g3 {[%clk 0:03:00]}  d5 {[%clk 0:03:00]} 4. cxd5 {[%clk 0:03:00]}  Nxd5 {[%clk 0:03:01]} 5. Bg2 {[%clk 0:03:00]}  Nb6 {[%clk 0:03:02]} 6. a4 {[%clk 0:03:00]}  Nc6 {[%clk 0:03:03]} 7. a5 {[%clk 0:03:00]}  Nd7 {[%clk 0:03:02]} 8. a6 {[%clk 0:02:57]}  Rb8 {[%clk 0:03:00]} 9. Qa4 {[%clk 0:02:45]}  Nb6 {[%clk 0:02:58]} 10. Qb5 {[%clk 0:02:38]}  Bd7 {[%clk 0:02:53]} 11. axb7 {[%clk 0:02:33]}  Nb4 {[%clk 0:02:43]} 12. Qxe5+ {[%clk 0:02:32]}  Be7 {[%clk 0:02:44]} 13. Qe4 {[%clk 0:02:25]}  O-O {[%clk 0:02:43]} 14. Nf3 {[%clk 0:02:25]}  Bc6 {[%clk 0:02:29]} 15. Qb1 {[%clk 0:02:24]}  Rxb7 {[%clk 0:02:29]} 16. O-O {[%clk 0:02:23]}  Bf6 {[%clk 0:02:25]} 17. d3 {[%clk 0:02:22]}  N6d5 {[%clk 0:02:23]} 18. Ne4 {[%clk 0:02:16]}  Be7 {[%clk 0:02:06]} 19. Bd2 {[%clk 0:02:15]}  f5 {[%clk 0:02:06]} 20. Nc3 {[%clk 0:02:13]}  Bf6 {[%clk 0:02:06]} 21. Nxd5 {[%clk 0:02:05]}  Nxd5 {[%clk 0:02:06]} 22. Qc2 {[%clk 0:02:04]}  Qd7 {[%clk 0:02:00]} 23. Rab1 {[%clk 0:01:55]}  Rfb8 {[%clk 0:01:55]} 24. Bc3 {[%clk 0:01:50]}  Ba4 {[%clk 0:01:50]} 25. Qc1 {[%clk 0:01:17]}  Nxc3 {[%clk 0:01:40]} 26. bxc3 {[%clk 0:01:10]}  Rxb1 {[%clk 0:01:30]} 27. Qxb1 {[%clk 0:01:11]}  Rxb1 {[%clk 0:01:29]} 28. Rxb1 {[%clk 0:01:12]}  Bxc3 {[%clk 0:01:29]} 29. h4 {[%clk 0:00:52]}  h6 {[%clk 0:01:28]} 30. h5 {[%clk 0:00:40]}  Bc6 {[%clk 0:01:23]} 31. Rc1 {[%clk 0:00:36]}  Bf6 {[%clk 0:01:22]} 32. Ne5 {[%clk 0:00:16]}  Bxe5 {[%clk 0:01:21]} 33. Bxc6 {[%clk 0:00:17]}  Qd6 {[%clk 0:01:21]} 34. Bf3 {[%clk 0:00:16]}  a5 {[%clk 0:01:19]} 35. Rc6 {[%clk 0:00:15]}  Qe7 {[%clk 0:01:07]} 36. Ra6 {[%clk 0:00:13]}  Qb4 {[%clk 0:01:03]} 37. Bd5+ {[%clk 0:00:11]}  Kf8 {[%clk 0:01:03]} 38. Bc4 {[%clk 0:00:10]}  a4 {[%clk 0:01:02]} 39. Kg2 {[%clk 0:00:09]}  a3 {[%clk 0:01:02]} 40. Re6 {[%clk 0:00:03]}  Bd6 {[%clk 0:01:01]} 0-1

[Event "January 9 Early 2024"]
[Site "https://www.chess.com"]
[Date "2024.01.11"]
[Round "3"]
[White "Mabusela, Johannes Manyedi"]
[Black "Latreche, Khadidja"]
[Result "1-0"]
[Board "123"]
[TimeControl "180+1"]
[WhiteFideId "14300702"]
[BlackFideId "7901780"]
[WhiteElo "2388"]
[BlackElo "2134"]
[WhiteTeam "RSA"]
[BlackTeam "ALG"]
[WhiteClock "0:00:56"]
[BlackClock "0:00:01"]

1. e4 {[%clk 0:03:00]}  c5 {[%clk 0:02:50]} 2. Nc3 {[%clk 0:02:59]}  e6 {[%clk 0:02:48]} 3. Nf3 {[%clk 0:02:57]}  Nc6 {[%clk 0:02:44]} 4. d4 {[%clk 0:02:57]}  cxd4 {[%clk 0:02:44]} 5. Nxd4 {[%clk 0:02:58]}  Qc7 {[%clk 0:02:44]} 6. f4 {[%clk 0:02:56]}  a6 {[%clk 0:02:43]} 7. Nf3 {[%clk 0:02:56]}  Bb4 {[%clk 0:02:33]} 8. Bd3 {[%clk 0:02:55]}  Nf6 {[%clk 0:02:31]} 9. O-O {[%clk 0:02:53]}  d6 {[%clk 0:02:28]} 10. Kh1 {[%clk 0:02:49]}  O-O {[%clk 0:02:27]} 11. Bd2 {[%clk 0:02:39]}  Bc5 {[%clk 0:02:25]} 12. Qe1 {[%clk 0:02:38]}  b5 {[%clk 0:02:20]} 13. e5 {[%clk 0:02:37]}  dxe5 {[%clk 0:02:11]} 14. fxe5 {[%clk 0:02:38]}  Nd5 {[%clk 0:01:38]} 15. Qh4 {[%clk 0:02:34]}  g6 {[%clk 0:01:37]} 16. Ng5 {[%clk 0:02:25]}  h5 {[%clk 0:01:22]} 17. Nxd5 {[%clk 0:02:08]}  exd5 {[%clk 0:01:11]} 18. e6 {[%clk 0:02:08]}  f6 {[%clk 0:00:50]} 19. Bxg6 {[%clk 0:01:50]}  fxg5 {[%clk 0:00:47]} 20. Qxh5 {[%clk 0:01:50]}  Bxe6 {[%clk 0:00:26]} 21. Qxg5 {[%clk 0:01:43]}  Qg7 {[%clk 0:00:23]} 22. Qh5 {[%clk 0:01:39]}  Rxf1+ {[%clk 0:00:20]} 23. Rxf1 {[%clk 0:01:37]}  Rf8 {[%clk 0:00:19]} 24. Re1 {[%clk 0:01:34]}  Bd7 {[%clk 0:00:19]} 25. Bh6 {[%clk 0:01:27]}  Qf6 {[%clk 0:00:10]} 26. Bxf8 {[%clk 0:01:19]}  Kxf8 {[%clk 0:00:10]} 27. Qxd5 {[%clk 0:01:14]}  Be7 {[%clk 0:00:05]} 28. Qxd7 {[%clk 0:01:11]}  Qxg6 {[%clk 0:00:05]} 29. Rf1+ {[%clk 0:01:08]}  Kg7 {[%clk 0:00:04]} 30. h3 {[%clk 0:01:07]}  Qd6 {[%clk 0:00:03]} 31. Qg4+ {[%clk 0:01:06]}  Qg6 {[%clk 0:00:02]} 32. Qf3 {[%clk 0:01:02]}  Bd6 {[%clk 0:00:01]} 33. Qxc6 {[%clk 0:00:57]}  Qg3 {[%clk 0:00:01]} 34. Qd7+ {[%clk 0:00:56]} 1-0

[Event "January 9 Early 2024"]
[Site "https://www.chess.com"]
[Date "2024.01.11"]
[Round "3"]
[White "Piscicelli, Daniel Orlando"]
[Black "Avramidou, Anastasia"]
[Result "0-1"]
[Board "125"]
[TimeControl "180+1"]
[WhiteFideId "101958"]
[BlackFideId "4239873"]
[WhiteElo "2279"]
[BlackElo "2526"]
[WhiteTeam "ARG"]
[BlackTeam "GRE"]
[WhiteClock "0:00:03"]
[BlackClock "0:00:52"]

1. e4 {[%clk 0:03:00]}  g6 {[%clk 0:03:00]} 2. d4 {[%clk 0:03:00]}  Bg7 {[%clk 0:03:00]} 3. Nc3 {[%clk 0:02:59]}  d6 {[%clk 0:03:01]} 4. Be3 {[%clk 0:02:57]}  a6 {[%clk 0:03:01]} 5. Qd2 {[%clk 0:02:57]}  b5 {[%clk 0:03:02]} 6. f4 {[%clk 0:02:56]}  Bb7 {[%clk 0:03:02]} 7. Bd3 {[%clk 0:02:53]}  Nd7 {[%clk 0:03:00]} 8. Nf3 {[%clk 0:02:53]}  c5 {[%clk 0:03:00]} 9. O-O {[%clk 0:02:51]}  Ngf6 {[%clk 0:02:55]} 10. d5 {[%clk 0:02:47]}  Ng4 {[%clk 0:02:50]} 11. h3 {[%clk 0:02:46]}  Nxe3 {[%clk 0:02:50]} 12. Qxe3 {[%clk 0:02:46]}  O-O {[%clk 0:02:38]} 13. f5 {[%clk 0:02:42]}  c4 {[%clk 0:02:32]} 14. Be2 {[%clk 0:02:41]}  Qb6 {[%clk 0:02:32]} 15. Qxb6 {[%clk 0:02:36]}  Nxb6 {[%clk 0:02:33]} 16. Rad1 {[%clk 0:02:27]}  b4 {[%clk 0:02:26]} 17. Nb1 {[%clk 0:02:17]}  Bxb2 {[%clk 0:02:26]} 18. fxg6 {[%clk 0:02:06]}  hxg6 {[%clk 0:02:21]} 19. Nbd2 {[%clk 0:02:06]}  Rac8 {[%clk 0:02:13]} 20. Rb1 {[%clk 0:01:55]}  Bc3 {[%clk 0:02:13]} 21. Kh1 {[%clk 0:01:35]}  a5 {[%clk 0:02:06]} 22. Rfd1 {[%clk 0:01:15]}  f5 {[%clk 0:01:38]} 23. Nh4 {[%clk 0:00:29]}  Kg7 {[%clk 0:01:26]} 24. exf5 {[%clk 0:00:26]}  gxf5 {[%clk 0:01:26]} 25. Bf3 {[%clk 0:00:14]}  Bxd5 {[%clk 0:01:10]} 26. Bxd5 {[%clk 0:00:12]}  Nxd5 {[%clk 0:01:11]} 27. Nxc4 {[%clk 0:00:13]}  Rxc4 {[%clk 0:01:10]} 28. Rxd5 {[%clk 0:00:13]}  Rxh4 {[%clk 0:01:10]} 29. Rxa5 {[%clk 0:00:09]}  Re4 {[%clk 0:01:04]} 30. Rd5 {[%clk 0:00:08]}  Kg6 {[%clk 0:01:01]} 31. Kh2 {[%clk 0:00:07]}  Ra8 {[%clk 0:00:55]} 32. Rb5 {[%clk 0:00:03]}  Rxa2 {[%clk 0:00:54]} 33. Rb7 {[%clk 0:00:03]}  Rxc2 {[%clk 0:00:53]} 34. Rb3 {[%clk 0:00:03]}  Rb2 {[%clk 0:00:52]} 0-1

[Event "January 9 Early 2024"]
[Site "https://www.chess.com"]
[Date "2024.01.11"]
[Round "3"]
[White "Srdanovic, Jovana"]
[Black "Kornyukov, Alexey"]
[Result "1-0"]
[Board "130"]
[TimeControl "180+1"]
[WhiteFideId "954810"]
[BlackFideId "4150457"]
[WhiteElo "2552"]
[BlackElo "2278"]
[WhiteTeam "SRB"]
[BlackTeam "RUS"]
[WhiteClock "0:01:19"]
[BlackClock "0:00:21"]

1. d4 {[%clk 0:03:00]}  Nf6 {[%clk 0:02:55]} 2. c4 {[%clk 0:02:59]}  e6 {[%clk 0:02:48]} 3. Nf3 {[%clk 0:02:57]}  Bb4+ {[%clk 0:02:44]} 4. Bd2 {[%clk 0:02:53]}  Bxd2+ {[%clk 0:02:44]} 5. Qxd2 {[%clk 0:02:54]}  O-O {[%clk 0:02:42]} 6. Qc2 {[%clk 0:02:52]}  d5 {[%clk 0:02:41]} 7. e3 {[%clk 0:02:50]}  c5 {[%clk 0:02:40]} 8. dxc5 {[%clk 0:02:44]}  Qa5+ {[%clk 0:02:38]} 9. Nc3 {[%clk 0:02:40]}  Qxc5 {[%clk 0:02:36]} 10. cxd5 {[%clk 0:02:37]}  Nxd5 {[%clk 0:02:35]} 11. Rc1 {[%clk 0:02:37]}  Nxc3 {[%clk 0:02:22]} 12. Qxc3 {[%clk 0:02:36]}  Qxc3+ {[%clk 0:02:22]} 13. Rxc3 {[%clk 0:02:37]}  Nc6 {[%clk 0:02:20]} 14. Bd3 {[%clk 0:02:24]}  e5 {[%clk 0:02:10]} 15. h3 {[%clk 0:02:09]}  Be6 {[%clk 0:02:08]} 16. a3 {[%clk 0:02:01]}  f5 {[%clk 0:02:02]} 17. Bb5 {[%clk 0:01:52]}  e4 {[%clk 0:01:56]} 18. Bxc6 {[%clk 0:01:49]}  bxc6 {[%clk 0:01:47]} 19. Nd4 {[%clk 0:01:49]}  Bd5 {[%clk 0:01:46]} 20. Nxc6 {[%clk 0:01:48]}  Bxc6 {[%clk 0:01:45]} 21. Rxc6 {[%clk 0:01:48]}  Rac8 {[%clk 0:01:42]} 22. Rxc8 {[%clk 0:01:47]}  Rxc8 {[%clk 0:01:41]} 23. Kd2 {[%clk 0:01:47]}  Kf7 {[%clk 0:01:35]} 24. Rc1 {[%clk 0:01:46]}  Rd8+ {[%clk 0:01:33]} 25. Ke2 {[%clk 0:01:45]}  Rb8 {[%clk 0:01:32]} 26. b4 {[%clk 0:01:44]}  Rb7 {[%clk 0:01:27]} 27. Rc6 {[%clk 0:01:43]}  g6 {[%clk 0:01:24]} 28. h4 {[%clk 0:01:41]}  Ke7 {[%clk 0:01:16]} 29. Kd2 {[%clk 0:01:41]}  Kd7 {[%clk 0:01:08]} 30. Rf6 {[%clk 0:01:41]}  Ke7 {[%clk 0:01:07]} 31. Ra6 {[%clk 0:01:41]}  Rd7+ {[%clk 0:01:05]} 32. Kc2 {[%clk 0:01:40]}  Rc7+ {[%clk 0:00:55]} 33. Kb2 {[%clk 0:01:37]}  Rd7 {[%clk 0:00:52]} 34. Kc3 {[%clk 0:01:32]}  Rc7+ {[%clk 0:00:49]} 35. Kb3 {[%clk 0:01:25]}  Rd7 {[%clk 0:00:46]} 36. b5 {[%clk 0:01:22]}  Rd2 {[%clk 0:00:42]} 37. Rxa7+ {[%clk 0:01:21]}  Kd6 {[%clk 0:00:42]} 38. Rxh7 {[%clk 0:01:19]}  Rxf2 {[%clk 0:00:41]} 39. Rh6 {[%clk 0:01:19]}  Rxg2 {[%clk 0:00:41]} 40. h5 {[%clk 0:01:20]}  f4 {[%clk 0:00:27]} 41. Rxg6+ {[%clk 0:01:12]}  Rxg6 {[%clk 0:00:26]} 42. hxg6 {[%clk 0:01:13]}  f3 {[%clk 0:00:19]} 43. g7 {[%clk 0:01:13]}  f2 {[%clk 0:00:19]} 44. g8=Q {[%clk 0:01:14]}  f1=Q {[%clk 0:00:19]} 45. Qd8+ {[%clk 0:01:11]}  Kc5 {[%clk 0:00:18]} 46. Qd4+ {[%clk 0:01:10]}  Kxb5 {[%clk 0:00:18]} 47. Qb4+ {[%clk 0:01:11]}  Kc6 {[%clk 0:00:18]} 48. Qc4+ {[%clk 0:01:12]}  Qxc4+ {[%clk 0:00:18]} 49. Kxc4 {[%clk 0:01:13]}  Kd6 {[%clk 0:00:17]} 50. Kd4 {[%clk 0:01:14]}  Kc6 {[%clk 0:00:18]} 51. Kxe4 {[%clk 0:01:15]}  Kb5 {[%clk 0:00:18]} 52. Ke5 {[%clk 0:01:16]}  Ka4 {[%clk 0:00:19]} 53. Kd6 {[%clk 0:01:16]}  Kxa3 {[%clk 0:00:20]} 54. e4 {[%clk 0:01:17]}  Kb4 {[%clk 0:00:21]} 55. e5 {[%clk 0:01:18]}  Kc4 {[%clk 0:00:21]} 56. e6 {[%clk 0:01:19]} 1-0